{"text_format":"1","workbook":"xlsx","n_sheets":3,"sheets":["2015 2016","2016 2017","Feuil1"],"not_rendered":{"charts":0,"images":0,"macros":1,"external_links":0,"defined_names":2,"comments":0,"pivot_tables":0},"unopened":[],"bounds":{"document_bytes":16777216,"sheet_cells":100000,"rows_first":2000,"rows_last":500,"rows_between":2000,"halvings":0,"cell_chars":16384,"cell_head_chars":4096},"cells_cut":0,"cells_raw":0,"read":"whole","date_system":"1900"}

{"sheet":"2015 2016","index":0,"n_rows":210,"n_cols":29,"rows_kept":210,"cut":false,"hidden":false,"merged":[[0,0,2,10],[14,0,14,4],[35,0,35,4],[188,0,188,4],[56,0,56,4],[64,0,64,4],[112,0,112,4],[157,0,157,4],[3,9,3,10],[3,17,3,18],[5,0,5,4],[3,5,3,6],[3,27,3,28],[3,19,3,20],[3,21,3,22],[3,23,3,24],[3,25,3,26],[3,11,3,12],[3,7,3,8],[3,0,4,0],[3,1,4,1],[3,2,4,2],[3,3,3,4],[3,13,3,14],[3,15,3,16]]}
["CLASSEMENT DES TOURNOIS DEPARTEMENTAUX JEUNES                                         Saison 2015/2016"]
[]
[]
["Classement","Joueurs","Club","Classement Général",null,"Bourg Ceyzériat",null,"Ambérieu ",null,"Chatillon ",null,"Ambérieu",null,"Belley",null,"ASPTT Bourg",null,"Miribel",null,"Trévoux",null,"Oyonnax",null,"Montmerle",null,"Tournoi N°11",null,"Tournoi N°12"]
[null,null,null,"Point\ntournoi","Nbr de tournois joués","Niveau\ntournoi","Points\ntournoi","Niveau\ntournoi","Points\ntournoi","Niveau\ntournoi","Points\ntournoi","Niveau\ntournoi","Points\ntournoi","Niveau\ntournoi","Points\ntournoi","Niveau\ntournoi","Points\ntournoi","Niveau\ntournoi","Points\ntournoi","Niveau\ntournoi","Points\ntournoi","Niveau\ntournoi","Points\ntournoi","Niveau\ntournoi","Points\ntournoi","Niveau\ntournoi","Points\ntournoi","Niveau\ntournoi","Points\ntournoi"]
["CADETTES",null,null,null,null,"X",null,"X",null,"X",null,"X",null,"X",null,"X",null,"X",null,"X"]
[1,"BASQUE Océane","Ambérieu",{"$f":"G7+K7+I7+M7+O7+Q7+S7+U7+W7+Y7","v":134},null,null,null,null,null,null,null,null,null,"F Top A",30,"V TopA",40,"1ère TOP A",40,"3ème Top A",24]
[2,"POULET GEORGES Annaelle","Ambérieu",{"$f":"G8+K8+I8+M8+O8+Q8+S8+U8+W8+Y8","v":110},null,null,null,"F Top A",30,null,null,null,null,null,null,null,null,"1ère TOP A",40,"1ère Top A",40]
[3,"FEYDIT Julie","Trévoux",28,null,null,null,"1/2 Top A",24,null,null,null,null,"P Top A",2,null,null,null,null,"4ème Top A",2]
[4,"DERABLI Juliana","Ambérieu",26,null,null,null,"1/2 Top A",24,null,null,null,null,null,null,null,null,"4ème Top A",2]
[5,"CHAMBARD Fanny","Ambérieu",4,null,null,null,"P Top A",2,null,null,null,null,null,null,null,null,"4ème Top A",2]
[6,"CAILLON Lucie","Oyonnax",4,null,null,null,"P Top A",2,null,null,null,null,null,null,"P Top A",2]
[7,"MAURIN Lucie","Belley",1,null,null,null,null,null,null,null,null,null,"P Top B",1]
[]
["MINIMES FILLES",null,null,null,null,"X",null,"X",null,"X",null,"X",null,"X",null,"X",null,"X",null,"X"]
[1,"PUISSANT Loane","Chatillon",{"$f":"G16+K16+I16+M16+O16+Q16+S16+U16+W16+Y16","v":344},null,"F TopA",30,"F Top A",30,"V Top A",40,null,null,"1/2 Top A Surc",48,"F Top A Surc",60,"3ème Top A Sur",48,"1/2 Top A",24,"1/2 Top A",24,"1ère",40]
[2,"ROUAULT Linoa","Trévoux",264,null,"V TopA",30,null,null,"1/2 TopA",24,null,null,"V Top A Surc",80,null,null,"2ème Top A Sur",60,"V Top A",40,null,null,"2ème ",30]
[3,"LE Léane","Ambérieu",140,null,null,null," V Top A Surc",80,null,null,null,null,null,null,null,null,null,null,"2ème Top A Surc",60]
[4,"SANCHEZ Coralie","Trévoux",136,null,"P TopA",2,null,null,"1/2 TopA",24,null,null,"P Top A",2,null,null,"3ème Top A Sur",60,"1/4 Top A",18,null,null,"2ème ",30]
[5,"GIROUD Louise","Centre Domes",136,null,null,null,null,null,null,null,null,null,null,null,"1/2 Top A Surc",48,"3ème Top A Sur",48,null,null,null,null,"1ère ",40]
[6,"MARRON Amélie","St Genis",118,null,"1/2 TopA",24,"P Top A",2,null,null,null,null,"1/2 Top A Surc",24,"1/2 Top A Surc",48,null,null,"1/4 Top A",18,"P Top A",2]
[7,"BOUILLARD Alicia","3 Rivières",96,null,"P TopA",2,"1/2 Top A",24,"P Top A",2,null,null,"P Top A Surc",4,"1/4 Top A Surc",36,null,null,"P Top A ",2,"P Top A",2,"3ème",24]
[8,"LEGROS Fanny","Belley",92,null,null,null,"1/2 Top A",24,"F Top A",30,null,null,"P Top A",2,"1/4 Top A Surc",36]
[9,"CHOSSAT Julie","Oyonnax",68,null,"P TopA",2,"P Top A",2,null,null,null,null,"V Top B Surc",40,"P Top A Surc",4,null,null,null,null,"V Top B",20]
[10,"CANONNE Aléna","Ambérieu",60,null,null,null,null,null,null,null,null,null,"1/2 Top A Surc",48,null,null,null,null,null,null,"1/2 Top B",12]
[11,"DEVILLARD Pauline","Bourg Ceyzériat",48,null,"1/2 TopA",24,null,null,"1/2 TopA",24]
[12,"FLECHET Camille","Ambérieu",31,null,null,null,null,null,null,null,null,null,"F Top B Surc",30,null,null,null,null,null,null,"P Top B",1]
[13,"TORRES Gwendoline","Oyonnax",31,null,null,null,"P Top A",2,"P TopA",2,null,null,"P Top B Surc",2,"P Top A Surc",4,"5ème Top A",2,"P Top A",2,"F Top B",15,"5ème",2]
[14,"LOUREAUX Maéva","Oyonnax",30,null,null,null,"P Top A",2,"P TopA",2,null,null,"1/2 Top B Surc",24,null,null,"5ème Top A",2]
[15,"BRUNE Gaelle","Oyonnax",14,null,null,null,null,null,null,null,null,null,null,null,null,null,null,null,null,null,"1/2 Top B",12,"5ème",2]
[16,"ROUSSET Manon","Oyonnax",5,null,null,null,null,null,null,null,null,null,null,null,"P Top A Surc",4,null,null,null,null,"P Top B",1]
[17,"THOMAS Solène","Belley",2,null,null,null,null,null,null,null,null,null,"P Top B Surc",2]
[18,"CURNILLON Jade","Chatillon",2,null,null,null,null,null,"P TopA",2]
[19,"CAILLON Lucie","Oyonnax",1,null,null,null,null,null,null,null,null,null,null,null,null,null,null,null,null,null,"P Top B",1]
[]
["BENJAMINES",null,null,null,null,"X",null,"X",null,"X",null,"X",null,"X",null,"X",null,"X",null,"X"]
[1,"PELERIN Sarah","Chatillon",{"$f":"G37+K37+M37+O37+Q37+I37+S37+U37+W37+Y37","v":300},null,null,null,"V Top A Surc",80,"V Top A Surc",80,null,null,null,null,null,null,null,null,"F Top A Surc",60,"V Top A Surc",80]
[2,"SIMONET Alice","Bourg Ceyzériat",240,null,"1ère TopA",40,"V Top A",40,"1/2 TopA Surc",24,null,null,null,null,"V Top A",40,null,null,null,null,"1/2 Top A Surc",48,"3ème Surc",48]
[3,"LEBEAULT Sasha","3 Rivières",210,null,"3ème TopA",24,"1/2 Top A",24,"1ere TopA",40,null,null,null,null,"F Top A",30,null,null,"1/2 Top A Surc",48,"V Top A",40,"4ème Surc",4]
[4,"BOULITEAU Manon","3 Rivières",202,null,"2ème TopA",30,"F Top A",30,"1ere TopA",40,null,null,null,null,"1/2 Top A",24,"1ère Top A",40,"P Top A Surc",4,"F Top A",30,"4ème Surc",4]
[5,"CORDIER Louise","Trévoux",200,null,"4ème TopA",2,null,null,null,null,null,null,"V Top A",40,"1/2 Top A ",24,"2ème Top A",30,"1ère Top A",40,"1/2 Top A",24,"V",40]
[6,"GUILBERT LY Aï Linh","Chatillon",120,null,null,null,null,null,"F Top A Surc",60,null,null,null,null,null,null,null,null,null,null,"F Top A Surc",60]
[7,"CLAUDET Clara","St Genis",54,null,null,null,"1/2 Top A",24,"2ème Top A",30]
[8,"CLAUDET Romane","St Genis",54,null,null,null,null,null,"2ème Top A",30,null,null,null,null,null,null,null,null,null,null,"1/2 Top A",24]
[9,"LEUK Julie","3 Rivières",48,null,null,null,null,null,null,null,null,null,null,null,null,null,null,null,null,null,"1/4 Top A",18,"2ème",30]
[10,"VASTEL Marion","Trévoux",46,null,null,null,"P Top A",2,null,null,null,null,null,null,"P Top A",2,null,null,"3ème Top A",18,null,null,"3ème",24]
[11,"BARLET Léa","Belley",30,null,null,null,null,null,null,null,null,null,"F Top A",30]
[12,"PLANTIER Elsa","Miribel",28,null,null,null,null,null,null,null,null,null,null,null,null,null,"3ème Top A",24,"5ème Top A",2,"P Top A",2]
[13,"PIERRE Eva","Belley",26,null,null,null,null,null,null,null,null,null,"1/2 Top A",24,"P Top A",2]
[14,"AGUETTANT Alix","Belley",24,null,null,null,null,null,null,null,null,null,"1/2 Top A",24]
[15,"DE DURAT Lorna","Chatillon",24,null,null,null,null,null,"3ème Top A",24]
[16,"RIGOLLET Lucie ","Chatillon",24,null,null,null,null,null,"3ème Top A",24]
[17,"GAULTIER Manon","St Genis",4,null,"5ème TopA",2,"P Top A",2]
[18,"DE ALMEIDA Mélina","3 Rivières",4,null,null,null,null,null,null,null,null,null,null,null,null,null,null,null,null,null,"P Top A",2,"4ème",2]
[19,"CORRUE MEISENER Emma","Belley",2,null,null,null,null,null,null,null,null,null,"P Top A",2]
[]
["POUSSINES",null,null,null,null,"X",null,"X",null,"X",null,"X",null,"X",null,"X",null,"X",null,"X"]
[1,"TATOT Tatiana","Belley",{"$f":"G58+K58+M58+O58+Q58+I58+S58+U58+W58+Y58","v":94},null,null,null,null,null,null,null,null,null,null,null,"F Top A",30,null,null,"2ème Top A Surc",60,"P Top A Surc",4]
[2,"GOEPPNER CHAU Marie","St Genis",49,null,null,null,null,null,null,null,null,null,null,null,"V Top A",40,null,null,null,null,"1/4 Top A",9]
[3,"MARRON Gabriel","St Genis",30,null,null,null,null,null,null,null,null,null,null,null,"1/2 Top A",24,null,null,"4ème Top A Surc",4,"P Top A",2]
[4,"BELLEC Ambre","Belley",24,null,null,null,null,null,null,null,null,null,null,null,"1/2 Top A",24]
[5,"GAILLARD Ninon","Chatillon",2,null,null,null,null,null,null,null,null,null,null,null,"P Top A",2]
[6,"MAITRE Anae","Chatillon",2,null,null,null,null,null,null,null,null,null,null,null,"P Top A",2]
[]
["CADETS",null,null,null,null,"X",null,"X",null,"X",null,"X",null,"X",null,"X",null,"X",null,"X"]
[1,"BEAURENAULT Axel","Trévoux",{"$f":"G66+K66+M66+O66+Q66+I66+S66+U66+W66+Y66","v":180},null,null,null,"F Top A",30,null,null,null,null,"V Top A",40,null,null,null,null,"F Top A",30,"V Top A",40,"V",40]
[2,"FOREST Lucas","Belley",179,null,"1/4 TopA",18,"V Top A",40,"F Top A",30,null,null,"1/4 Top A",18,"P Top A",2,"F Top A",30,"P Top A",2,"F Top B",15,"1/2",24]
[3,"STENARD Jérémy","3 Rivières",172,null,"V TopA",40,null,null,"1/2 Top A",24,null,null,"1/2 Top A",24,null,null,"1/2 Top A",24,"V Top A",40,"P Top A",2,"1/4",18]
[4,"GERBIER Loan","Trévoux",148,null,null,null,"1/2 Top A",24,"V Top A",40,null,null,null,null,"F Top A",30,null,null,"1/2 Top A",24,"F Top A",30]
[5,"LEGARDEUR Mattéo","St Genis",138,null,"1/2 TopA",24,null,null,"V Top B",20,null,null,"F Top A",30,null,null,null,null,null,null,"1/2 Top A",24,"V",40]
[6,"PROST Justin","St Genis",130,null,"F TopA",30,"P Top A",2,"1/2 Top A",24,null,null,"1/4 Top A",18,"1/2 Top A",24,null,null,null,null,"P Top A",2,"F",30]
[7,"HILD Jean Baptiste","Belley",126,null,"1/2 TopA",24,null,null,"F Top A",30,null,null,"1/2 Top A",24,null,null,"F Top A",30,"1/4 Top A",18]
[8,"WANTZ Léo","Montmerle",108,null,null,null,"P Top A",2,"1/2 Top A",24,null,null,"1/4 Top A",18,"1/4 Top A",18,"1/2 Top A",24,"P Top A",2,"P Top A",2,"1/4",18]
[9,"VANDAMME Clément","3 Rivières",105,null,"1/4 TopA",18,"1/8 Top B ",7,"F Top B",15,null,null,"1/4 Top B",9,"F Top B",15,"P Top A",2,"1/2 Top B",12,"1/4 Top B",9,"1/4",18]
[10,"BESSET Florent","Miribel",88,null,null,null,null,null,null,null,null,null,"V Top B",20,"1/2 Top B",12,"1/2 Top A",24,"V Top B",20,"1/2 Top B",12]
[11,"MARRON Clément","St Genis",85,null,"P TopA",2,null,null,"V Top B",20,null,null,"1/4 Top A",18,"1/4 Top A",18,null,null,"1/4 Top A",18,"1/4 Top B",9]
[12,"PERRIN Joris","Bourg Ceyzériat",82,null,null,null,"1/2 Top A",24,"V Top A",40,null,null,null,null,"1/4 Top A",18]
[13,"DELUCINGE Théo","St Genis",78,null,"V TopB",20,null,null,null,null,null,null,"F Top B",15,"1/4 Top A",18,null,null,"1/4 Top A",18,"1/8 Top B",7]
[14,"BOEHLER Julien","Belley",78,null,"1/4 TopA",18,"1/2 Top B",12,"1/2 top B",12,null,null,"P Top A",2,"P Top A",2,"1/4 Top A",18,null,null,"1/2 Top B",12,"P",2]
[15,"PARMENTIER Guillaume","Bourg Ceyzériat",69,null,"1/2 TopB",12,"1/4 Top B",9,"1/2 TopB",12,null,null,null,null,"1/8 Top B",7,"1/4 Top A",18,"1/4 Top B",9,null,null,"P ",2]
[16,"ACOSTA Axel","Ambérieu",68,null,"1/4 TopA",18,"P Top A",2,"P Top A",2,null,null,"P Top A",2,null,null,"1/2 Top A",24,"P Top A",2,null,null,"1/4",18]
[17,"CAUCAL Bastien","Trévoux",67,null,"1/4 TopB",9,"F Top B",15,null,null,null,null,"1/2 Top B",12,"V Top B",20,null,null,"1/4 Top B",9,null,null,"P",2]
[18,"THIERRY Cédric","Ambérieu",67,null,"P TopB",1,"1/2 Top B",12,null,null,null,null,"1/8 Top B",7,"1/4 Top B",9,"P Top A",2,"1/2 Top B",12,null,null,"1/2",24]
[19,"LEGROS Rémi","Belley",64,null,null,null,null,null,null,null,null,null,null,null,"V Top A",40,null,null,null,null,null,null,"1/2",24]
[20,"RUER Léo","Ambérieu",54,null,"P TopA",2,"P Top A",2,"F Top B",15,null,null,"P TopA",2,"P Top A",2,"P Top A",2,"P Top A",2,"1/4 Top B",9,"1/4",18]
[21,"VINCENT Gaël","Belley",45,null,"P TopA",2,null,null,"1/2 top B",12,null,null,"P Top B",1,"P Top B",1,"1/4 Top A",18,"1/4 Top B",9,null,null,"P",2]
[22,"BARTHES Mathieu","Trévoux",43,null,"P TopA",2,"V Top B",20,null,null,null,null,"1/4 Top B",9,"1/4 Top B",9,null,null,"P Top B",1,null,null,"P",2]
[23,"LESCHI Lucas","Trévoux",35,null,null,null,null,null,"P Top A",2,null,null,"1/4 Top B",9,"1/4 Top B",9,null,null,"F Top B",15]
[24,"FONTAINE Jonathan","Chatillon",31,null,null,null,"1/4 Top B",9,"P Top B",2,null,null,"1/4 Top B",9,"1/4 Top A",9,null,null,"P Top B",1,"P Top B",1]
[25,"DUNY Corentin","3 Rivières",27,null,"P TopB",1,"1/4 Top B",9,"P Top B",1,null,null,"1/4 Top B",9,"P Top B",1,"P Top A",2,"P Top B",1,"P Top B",1,"P",2]
[26,"PANEK Maxime","Bourg Ceyzériat",22,null,"1/4 TopB",9,"P Top B",1,"P Top B",1,null,null,"P Top B",1,"P Top B",1,null,null,null,null,"1/4 Top B",9]
[27,"CARDON Nicolas","Montmerle",22,null,null,null,"1/8 Top B ",7,"P Top B",1,null,null,"P Top B",1,"1/8 Top B",7,"P top A",2,"P Top B",1,"P Top B",1,"P ",2]
[28,"REVEILLARD Jules","Belley",21,null,null,null,"P Top B",1,"P Top B",1,null,null,"P Top B",1,"P Top A",2,null,null,"1/4 Top B",9,"1/8 Top B",7]
[29,"BAREL Pierre","Ambérieu",19,null,null,null,"1/4 Top B",9,null,null,null,null,"P Top B",1,null,null,"P Top A",2,"1/8 Top B",7]
[30,"BERTHET Nathan","Bourg Ceyzériat",18,null,null,null,null,null,null,null,null,null,null,null,null,null,"1/4 Top A",18]
[31,"PAUTET Bertrand","Bourg ASPTT",18,null,"F TopB",15,null,null,"P Top B",1,null,null,null,null,null,null,null,null,null,null,null,null,"P",2]
[32,"PIRAD Gabriel","Bourg Ceyzériat",17,null,"P TopB",2,null,null,"1/2 TopB",12,null,null,null,null,"P Top B",1,null,null,null,null,null,null,"P",2]
[33,"MAITRE Lucas","Bourg ASPTT",12,null,"1/2 TopB",12]
[34,"GROLLEAN William","Miribel",12,null,null,null,null,null,null,null,null,null,"1/2 Top B",12]
[35,"JEANGEORGES Mathis","Belley",11,null,null,null,null,null,"P Top B",1,null,null,"1/8 Top B",7,"P Top B",1,null,null,"P Top B",1,"P Top B",1]
[36,"GRIMMER Martin","Ambérieu",10,null,null,null,null,null,null,null,null,null,"P Top B",1,"1/4 Top B",9]
[37,"FRUTTO Louis","St Genis",7,null,null,null,null,null,null,null,null,null,"1/8 Top B",7]
[38,"FOURNIER Louis","Bourg ASPTT",4,null,"P TopB",1,null,null,"P Top B",1,null,null,null,null,null,null,null,null,null,null,null,null,"P ",2]
[39,"ROY Bastien","Oyonnax",3,null,"P TopB",1,"P Top B",1,null,null,null,null,"P Top B",1]
[40,"FUCILE Simone","Miribel",2,null,null,null,null,null,null,null,null,null,null,null,null,null,"P Top A",2]
[41,"PLANTIER Yann","Miribel",2,null,null,null,null,null,null,null,null,null,null,null,null,null,"P Top A",2]
[42,"GRIVET Floarian","Ambérieu",2,null,null,null,null,null,null,null,null,null,null,null,null,null,"P Top A",2]
[43,"MONNE Etienne","Ambérieu",2,null,null,null,null,null,null,null,null,null,null,null,null,null,"P Top A",2]
[44,"PICCOLI Antoine","Oyonnax",2,null,null,null,"P Top B",1,null,null,null,null,null,null,null,null,null,null,null,null,"P Top B",1]
[45,"SANJINES Vicente","Bourg ASPTT",1,null,null,null,null,null,null,null,null,null,null,null,"P Top B",1]
[46,"PASCAL Simon","Ambérieu",1,null,null,null,"P Top B",1]
[]
["MINIMES GARCONS",null,null,null,null,"X",null,"X",null,"X",null,"X",null,"X",null,"X",null,"X",null,"X"]
[1,"HENCKENDORN Mathis","St Genis",{"$f":"G114+K114+M114+O114+I114+Q114+S114+U114+W114+Y114","v":302},null,"V TopA",40,null,null,"1/2 TopA Surc",48,null,null,"V Top A",40,"F Top A",30,null,null,"1/4 Top A Surc",36,"1/2 Top A Surc",48,"F Surc",60]
[2,"JULIEN Elie","Chatillon",262,null,"1/2 TopA",24,"1/2 Top A",24,"F TopA ",30,null,null,"F Top A",30,"V Top A",40,"V Top A",40,"V Top A",40,"P Top A Surc",4,"2ème",30]
[3,"BOULITEAU Mattéo","3 Rivières",176,null,"P TopA",2,"P Top A",2,"F Top A",30,null,null,null,null,"1/2 Top A",24,"V Top A",40,"1/2 Top A ",24,"1/2 Top A",24,"2ème",30]
[4,"GIORDANO Martin","Bourg Ceyzériat",166,null,"F TopA",30,null,null,null,null,null,null,null,null,"1/2 Top A Surc",48,null,null,"1/2 Top A Surc",48,"V Top B Surc",40]
[5,"GALIGNE Robin","Trévoux",154,null,null,null,"F Top A",30,null,null,null,null,null,null,"1/2 Top A",24,"F top A",30,"F Top A",30,null,null,"V",40]
[6,"ACOSTA Cyril","Ambérieu",128,null,"1/2 TopA",24,"P Top A",2,"P TopA Surc",4,null,null,null,null,null,null,"V Top A Surc",80,"1/4 Top A",18]
[7,"CHARREYRON Bruno","Trévoux",127,null,null,null,null,null,"1/4 TopA",18,null,null,null,null,"F Top B",15,"F top A",30,"1/2 Top B",12,"1/2 Top B",12,"V",40]
[8,"CHABANNE Léo","Ambérieu",124,null,null,null,"V Top A",40,"P TopA Surc",4,null,null,null,null,null,null,"V Top A Surc",80]
[9,"LUCIEN Killian","Chatillon",97,null,"1/2 TopB",12,"1/4 Top B",9,"1/2 TopA",24,null,null,"P Top A",2,null,null,"1/2 Top A",24,"P Top A",2,null,null,"3ème",24]
[10,"ORIAL Alexandre","St Genis",78,null,null,null,"V Top B",20,null,null,null,null,null,null,"V Top B",20,null,null,"1/4 Top A",18,"V Top B ",20]
[11,"POUGET Quentin","Trévoux",60,null,"V TopB",20,"P Top B",1,null,null,null,null,null,null,null,null,"1/2 Top A",24,"F Top B",15]
[12,"BONOMO Paul","Ambérieu",59,null,null,null,"1/2 Top B",12,"1/2 TopA",24,null,null,"1/4 Top B",9,"1/2 Top B",12,"P Top A",2]
[13,"PLANTIER Yann","Miribel",59,null,null,null,null,null,null,null,null,null,"F Top B",15,"P Top A",2,null,null,"1/4 Top A",18,"1/2 Top A",24]
[14,"PAYAN Igor ","Chatillon",57,null,null,null,null,null,null,null,null,null,"1/2 Top B",12,"P Top A",2,"1/2 Top A",24,"P Top A",2,"F Top B",15,"4ème",2]
[15,"GUELIL Charlie","Ambérieu",56,null,null,null,"1/2 Top B",12,"1/2 TopA",24,null,null,"1/4 Top B",9,"1/4 Top B",9,"P Top A",2]
[16,"CHIROL Maxence","3 Rivières",46,null,"P TopB",1,"P Top B",1,"P TopA",2,null,null,"1/2 Top B",12,"P Top A",2,"P Top A",2,"1/2 Top B",12,"1/2 Top B",12,"4ème",2]
[17,"GERVAIS Hugo","Ambérieu",39,null,null,null,"1/2 Top B",12,null,null,null,null,null,null,"1/2 Top B",12,null,null,"F Top B",15]
[18,"CHAMPOUILLON Nathan","Miribel",33,null,null,null,null,null,null,null,null,null,"V Top B",20,null,null,"P Top A",2,"1/4 Top B",9,"P Top A",2]
[19,"LAMOURET Alexandre","Oyonnax",33,null,null,null,"P Top B",1,"1/4 Top A",18,null,null,"P Top B",1,"P Top B",1,null,null,"1/4 Top B",9,"P Top B",1,"5ème",2]
[20,"DURAND Maxime","Montmerle",21,null,null,null,null,null,"P TopA",2,null,null,"P Top B",1,"1/4 Top B ",9,null,null,"1/4 Top B",9]
[21,"DEBARRE Hugo","Miribel",19,null,null,null,null,null,null,null,null,null,null,null,null,null,"1/4 Top A",18,"P Top B",1]
[22,"BIAJOUX Mathias","Chatillon",18,null,null,null,null,null,"1/4 Top A",18]
[23,"GHILARDI Mathieu","Miribel",18,null,null,null,null,null,null,null,null,null,null,null,null,null,"1/4 Top A",18]
[24,"LENGAGNE Rémi","Miribel",18,null,null,null,null,null,null,null,null,null,null,null,null,null,"1/4 Top A",18]
[25,"MONNOT Alexis","Miribel",18,null,null,null,null,null,null,null,null,null,null,null,null,null,"1/4 Top A",18]
[26,"FONTAINE Hugo","Miribel",18,null,null,null,null,null,null,null,null,null,"1/4 Top B",9,null,null,null,null,"1/4 Top B",9]
[27,"DUBREUIL Robinson","Bourg Ceyzériat",16,null,"F TopB",15,null,null,null,null,null,null,null,null,"P Top B",1]
[28,"DURO Esteban","Bourg Ceyzériat",14,null,"1/2 TopB",12,null,null,null,null,null,null,null,null,"P Top A",2]
[29,"FERNANDEZ Hugo","Villars ",9,null,null,null,null,null,null,null,null,null,"1/4 Top B",9]
[30,"TAVIAUX Charly","Oyonnax",9,null,null,null,null,null,null,null,null,null,null,null,null,null,null,null,null,null,"1/4 Top B",9]
[31,"ROUGEMOND Elie","Oyonnax",4,null,"P TopA",2,null,null,null,null,null,null,"P Top A",2]
[32,"CHANEL BURIGNATJordan","Bourg Ceyzériat",4,null,null,null,null,null,"P TopA",2,null,null,null,null,"P Top B",1,null,null,"P Top B",1]
[33,"GARIDDO Colas","Oyonnax",4,null,null,null,null,null,null,null,null,null,"P Top A",2,null,null,null,null,null,null,null,null,"5ème",2]
[34,"BOIZET Clément","Bourg Ceyzériat",3,null,null,null,null,null,"P TopA",2,null,null,null,null,"P Top B",1]
[35,"POMPET Ianis","Miribel",3,null,null,null,null,null,null,null,null,null,"P Top B",1,null,null,"P Top A",2]
[36,"NOBLET Antoine","Miribel",2,null,null,null,null,null,null,null,null,null,null,null,null,null,"P Top A",2]
[37,"CHAUNEY Axel","Bourg Ceyzériat",2,null,"P TopB",1,null,null,null,null,null,null,null,null,"P Top B",1]
[38,"BOURCET Thomas","Trévoux",2,null,null,null,"P Top B",1,null,null,null,null,null,null,null,null,null,null,"P Top B",1]
[39,"CHAMPLIAU Romain","Oyonnax",1,null,null,null,null,null,null,null,null,null,null,null,null,null,null,null,null,null,"P Top B",1]
[40,"BOURNIER Lucas","Bourg Ceyzériat",1,null,null,null,null,null,"P TopA ",1]
[41,"FRUTTO Thomas","St Genis",1,null,null,null,null,null,null,null,null,null,"P Top B",1]
[42,"VASSE Killian","Oyonnax",0]
[41]
[]
["BENJAMINS",null,null,null,null,"X",null,"X",null,"X",null,"X",null,"X",null,"X",null,"X",null,"X"]
[1,"LOUIS GAVET Rémi","Chatillon",{"$f":"G159+K159+M159+O159+Q159+I159+S159+U159+W159+Y159","v":260},null,null,null,"1/2 Top A Surc",48,"V Top A Surc",80,null,null,"P Top A Surc",4,null,null,null,null,"1/2 Top A Surc",48,"V Top A Surc",80]
[2,"MORIN Alois","Chatillon",252,null,null,null,"F Top B Surc",30,"1/2 TopA Surc",48,null,null,"1/2 Top A Surc",48,"F Top A",30,"1/2 Top A Surc",48,null,null,null,null,"3ème Surc",48]
[3,"DUPUPET Adrien","Chatillon",230,null,"1/2 TopA",24,null,null,"F Top A",30,null,null,"V Top A ",40,"P Top A",2,"1er Top A",40,"F Top A",30,"1/2 Top A",24,"V",40]
[4,"LAGER Ewen","Bourg Ceyzériat",228,null,null,null,"P Top A Surc",4,"V Top A Surc",80,null,null,"1/2 Top A Surc",48,null,null,null,null,"1/4 Top A Surc",36,"F Top A Surc",60]
[5,"MARTINAND Cédric","Chatillon",214,null,"1/2 TopA",24,null,null,"F Top A",30,null,null,"F Top A",30,"P Top A",2,"1er Top A",40,"1/2 Top A ",24,"1/2 Top A",24,"V",40]
[6,"NALET Martin","Bourg Ceyzériat",192,null,"F TopA",30,null,null,"V TopA",40,null,null,null,null,"1/2 Top A",24,"3ème Top A",24,"P Top A Surc",4,"V Top A",40,"F",30]
[7,"MOREY Nicolas","Bourg Ceyzériat",124,null,"V TopA",40,null,null,"V TopA",40,null,null,null,null,"V Top A",40,null,null,"P Top A Surc",4]
[8,"SANLIARD Yoann","Oyonnax",108,null,null,null,"1/2 Top B",12,"1/4 TopA",18,null,null,"1/2 Top A",24,"P Top A",2,"2ème Top A",30,null,null,"V Top B",20,"P ",2]
[9,"WALTHER Tom","Montmerle",108,null,null,null,"V Top B",20,"1/2 TopA ",12,null,null,"1/2 Top A",24,"1/2 Top A",24,null,null,"P Top A",2,"P Top A",2,"1/2",24]
[10,"BORDET Vivien","Oyonnax",76,null,null,null,null,null,null,null,null,null,"P Top A",2,"1/2 Top B",12,"2ème Top A",30,"1/4 Top A",18,"1/2 Top B",12,"P ",2]
[11,"NOGUES Raphael","St Genis",59,null,null,null,"F Top B",15,"1/2 TopA",24,null,null,null,null,"V Top B",20]
[12,"VINCENT Dorian","Belley",52,null,null,null,null,null,null,null,null,null,"1/4 Top A",18,"1/4 Top B",9,null,null,"P Top A",1,null,null,"1/2",24]
[13,"TEMMERMAN Tom","Chatillon",45,null,null,null,null,null,"P Top A",2,null,null,null,null,"1/4 Top B",9,"5ème Top A",2,"1/4 Top A",18,"1/2 Top B",12,"P ",2]
[14,"MARCONI Elio","St Genis",42,null,"P TopA",2,"1/2 Top B",12,"1/2 Top A",24,null,null,null,null,"P Top A",2,null,null,null,null,"P Top A",2]
[15,"PRINCIC-GONZE Paco","Belley",42,null,null,null,"P Top B",1,null,null,null,null,"P Top A",2,null,null,null,null,null,null,"F Top B",15,"1/2",24]
[16,"LAVINA Louis","Oyonnax",38,null,null,null,null,null,"1/4 TopA",18,null,null,"1/4 Top A",18,null,null,null,null,"P Top A",2]
[17,"VIALLON Adrien","Chatillon",38,null,null,null,null,null,"P Top A",2,null,null,null,null,"1/4 Top B",10,"5ème Top A",2,"1/2 Top A",24]
[18,"MAUGE Lino","Chatillon",33,null,null,null,null,null,"1/4 TopA",18,null,null,null,null,"1/2 Top B",12,"4ème Top A",2,null,null,"P Top B",1]
[19,"GENILLON Amir","Bourg Ceyzériat",31,null,null,null,null,null,"P TopA",2,null,null,null,null,"P Top B",1,"3ème Top A",24,null,null,"P Top A",2,"P ",2]
[20,"BERTHILLIER Kostia","Bourg Ceyzériat",19,null,null,null,null,null,"P TopA Surc",4,null,null,null,null,"F Top B",15]
[21,"PIERRE Enzo","Bourg Ceyzériat",13,null,null,null,null,null,"P TopA",2,null,null,null,null,"1/4 Top B",9,null,null,"P Top A",2]
[22,"THIROUARD Thomas","Ambérieu",5,null,null,null,"P Top B",1,null,null,null,null,null,null,null,null,null,null,"P Top A",2,null,null,"P ",2]
[23,"LECRIVAIN Raphael","Chatillon",3,null,null,null,null,null,null,null,null,null,null,null,"P Top B",1,"4ème Top A",2]
[24,"CAZALAS Grégoire","Bourg Ceyzériat",2,null,null,null,null,null,"P TopA",2]
[25,"DORIAN Vincent","Belley",2,null,"P TopA",2]
[26,"LAVINA Louis","Oyonnax",2,null,"P TopA",2]
[27,"STRULLU Guillaume","Belley",2,null,null,null,null,null,null,null,null,null,"P Top A",2]
[28,"DOS SANTOS Tiago","Oyonnax",2,null,null,null,null,null,null,null,null,null,null,null,"P Top B",1,null,null,null,null,"P Top B",1]
[29,"DUFOURMONT Lilian","Chatillon",1,null,null,null,null,null,null,null,null,null,null,null,"P Top B",1]
[]
["POUSSINS",null,null,null,null,"X",null,"X",null,"X",null,"X",null,"X",null,"X",null,"X",null,"X"]
[1,"LUCIEN Lucas","Chatillon",{"$f":"G190+K190+M190+O190+Q190+I190+S190+U190+W190+Y190","v":276},null,"V TopA",40,null,null,"1/4 TopA Surc",36,null,null,null,null,null,null,null,null,"V Top A Surc",80,"F Top A Surc",60,"F Surc",60]
[2,"CARPENTIER Erwan","Oyonnax",202,null,"1/2 TopA",24,"2ème Top A",30,"P TopA Surc",4,null,null,"1er Top A",40,"1/2 Top A",24,"V Top A",40,null,null,"V Top A",40]
[3,"DURAND Léo","3 Rivières",200,null,"P TopA",2,null,null,"1/2 TopA Surc",48,null,null,"2ème Top A",30,"1/2 Top A",24,"1/2 Top A",24,"1/2 Top A",24,null,null,"1/2 Surc",48]
[4,"MASSE Titouan","Bourg Ceyzériat",156,null,"1/2 TopA",24,null,null,"P TopA Surc",2,null,null,"4ème Top A ",2,"1/4 Top A",18,null,null,"V Top A",40,"F Top A",30,"V",40]
[5,"ZARA MARMETH Nathan","Oyonnax",144,null,"F TopA",30,"1er Top A",40,"P TopA Surc",4,null,null,null,null,"V Top A",40,"F top A",30]
[6,"MIQUEL Arthur","Trévoux",80,null,null,null,"3ème Top A",24,null,null,null,null,null,null,"P Top A",2,null,null,"1/2 Top A",24,null,null,"F",30]
[7,"MONARD Timothy","Chatillon",62,null,null,null,null,null,null,null,null,null,null,null,"1/4 Top A",18,"1/4 Top A",18,"P Top A",2,null,null,"1/2",24]
[8,"LAPOUGE Silas","Miribel",54,null,null,null,null,null,null,null,null,null,null,null,null,null,"1/2 Top A",24,"F Top A",30]
[9,"FAUGERE Maxence","Bourg Ceyzériat",50,null,null,null,null,null,null,null,null,null,null,null,"P Top A",2,null,null,null,null,"1/2 Top A",24,"1/2",24]
[10,"GENILLON Chedid","Bourg Ceyzériat",32,null,null,null,null,null,null,null,null,null,null,null,"P Top A",2,"P Top A",2,"P Top A",2,"1/2 Top A",24,"P",2]
[11,"HAYETTE Anseis","Chatillon",30,null,null,null,null,null,null,null,null,null,null,null,"F Top A",30]
[12,"VIDAL Mathieu","Ambérieu",24,null,null,null,null,null,null,null,null,null,null,null,null,null,"1/4 Top A",18,"P Top A",2,null,null,"P Surc",4]
[13,"CRETIN Clovis","Ambérieu",4,null,null,null,"4ème Top A",2,null,null,null,null,null,null,null,null,"P Top A",2]
[14,"MONTCHAL Ruben","Miribel",2,null,null,null,null,null,null,null,null,null,null,null,null,null,"P Top A",2]
[15,"POUILLART Pierre","Ambérieu",2,null,null,null,null,null,null,null,null,null,null,null,null,null,"P Top A",2]
[16,"ARDUIN Théotime","Belley",2,null,null,null,null,null,null,null,null,null,"5ème Top A",2]
[17,"HAMDAOUI Massyn","St Genis",2,null,null,null,null,null,null,null,null,null,null,null,null,null,null,null,null,null,"P Top A",2]
[18,"CAREME Axel","3 Rivières",2,null,null,null,null,null,null,null,null,null,null,null,null,null,null,null,null,null,"P Top A",2]
[19,"BORGE Joris","Chatillon",2,null,null,null,null,null,null,null,null,null,null,null,null,null,null,null,null,null,null,null,"P",2]
[20,"FLECHET Louis","Chatillon",2,null,null,null,null,null,null,null,null,null,null,null,null,null,null,null,null,null,null,null,"P",2]
[21,"FERRUS Elric","Trévoux",2,null,"P TopA",2]

{"sheet":"2016 2017","index":1,"n_rows":244,"n_cols":29,"rows_kept":244,"cut":false,"hidden":false,"merged":[[70,0,70,4],[82,0,82,4],[131,0,131,4],[177,0,177,4],[213,0,213,4],[3,23,3,24],[3,25,3,26],[3,27,3,28],[5,0,5,4],[20,0,20,4],[3,19,3,20],[3,21,3,22],[44,0,44,4],[3,11,3,12],[3,13,3,14],[3,15,3,16],[3,17,3,18],[0,0,2,10],[3,0,4,0],[3,1,4,1],[3,2,4,2],[3,3,3,4],[3,5,3,6],[3,7,3,8],[3,9,3,10]]}
["CLASSEMENT DES TOURNOIS DEPARTEMENTAUX JEUNES                                         Saison 2016/2017"]
[]
[]
["Classement","Joueurs","Club","Classement Général",null,"Bourg Ceyzériat",null,"Ambérieu ",null,"Chatillon ",null,null,null,"Belley",null,"ASPTT Bourg",null,"Beynost",null,"Trévoux",null,"Oyonnax",null,"Montmerle",null,"Tournoi N°11",null,"Tournoi N°12"]
[null,null,null,"Points\ntournois","Nbr de tournois joués","Niveau\ntournoi","Points\ntournoi","Niveau\ntournoi","Points\ntournoi","Niveau\ntournoi","Points\ntournoi","Niveau\ntournoi","Points\ntournoi","Niveau\ntournoi","Points\ntournoi","Niveau\ntournoi","Points\ntournoi","Niveau\ntournoi","Points\ntournoi","Niveau\ntournoi","Points\ntournoi","Niveau\ntournoi","Points\ntournoi","Niveau\ntournoi","Points\ntournoi","Niveau\ntournoi","Points\ntournoi","Niveau\ntournoi","Points\ntournoi"]
["CADETTES",null,null,null,null,"X",null,"X",null,"X",null,"X",null,"X",null,"X",null,"X",null,"X"]
[1,"CHOSSAT Julie","Oyonnax",{"$f":"G7+I7+K7+M7+O7+Q7+S7+U7+W7+Y7+AA7+AC7","v":88},{"$f":"COUNTA(G7,I7,K7,O7,S7,U7,W7,Y7)","v":5},"2ème Top A",30,"1/2 Top A",24,"4ème Top A",2,null,null,"F Top A",30,null,null,"4ème Top A",2]
[2,"CORVI Hortense","Trévoux",80,2,"1ère Top A",40,"V Top A",40]
[3,"FEYDIT Julie","Trévoux",78,3,null,null,"F Top A",30,"3ème Top A",24,null,null,null,null,null,null,"3ème Top A",24]
[4,"GIROUD Louise","Villars",70,2,null,null,null,null,null,null,null,null,"V Top A",40,null,null,"2ème Top A",30]
[5,"SANCHEZ Coralie","Trévoux",50,3,null,null,"1/2 Top A",24,"3ème Top A",24,null,null,null,null,null,null,"5ème Top A",2]
[6,"BASQUE Océane","Ambérieu",40,1,null,null,null,null,null,null,null,null,null,null,null,null,"1ère Top A",40]
[7,"TORRES Gwendoline","Oyonnax",28,3,null,null,"P Top A",2,"5ème Top A",2,null,null,"1/2 Top A",24]
[8,"CANONNE Aléna","Ambérieu",26,2,"3ème Top A",24,"P Top A",2]
[9,"BERTHOLET Calypso","Belley",24,1,null,null,null,null,null,null,null,null,"1/2 Top A",24]
[10,"FORTIS Lou","Oyonnax",4,2,null,null,"P Top A",2,"4ème Top A",2]
[11,"HYVERNAT Mallory","Châtillon",2,1,"4ème Top A",2]
[12,"BRUNE Gaëlle","Oyonnax",2,1,null,null,null,null,"5ème Top A",2]
[13,"PIERRE Lou-Anne","Belley",2,1,null,null,null,null,null,null,null,null,"P Top A",2]
[]
["MINIMES FILLES",null,null,null,null,"X",null,"X",null,"X",null,"X",null,"X",null,"X",null,"X",null,"X"]
[1,"GUILBERT-LY Ai-linh","Châtillon",{"$f":"G22+I22+K22+M22+O22+Q22+S22+U22+W22+Y22+AA22+AC22","v":160},{"$f":"COUNTA(G22,I22,K22,O22,S22,U22,W22,Y22)","v":3},"V Top A",40,"V Top A",40,"V Top A Surc",80]
[2,"PUISSANT Loane","Châtillon",110,2,"F Top A",30,null,null,"V Top A Surc",80]
[3,"BOUILLARD Alicia","Montmerle",104,5,"P Top A",2,"1/2 Top A",24,"F Top A",30,null,null,"1/2 Top A",24,null,null,"1/2 Top A",24]
[4,"SIMONET Alice","Bourg Ceyzériat",102,3,"1/4 Top A",18,"1/2 Top A",24,"F Top A Surc",60]
[5,"BOULITEAU Manon","Montmerle",102,5,"1/4 Top A",18,"1/4 Top A",18,"V Top A",40,null,null,"1/2 Top A",24,null,null,"P Top A",2]
[6,"MARRON Amélie","Saint Genis",94,3,"1/2 Top A",24,null,null,null,null,null,null,"F Top A",30,null,null,"V Top A",40]
[7,"PELERIN Sarah","Châtillon",90,2,null,null,"F Top A",30,"F Top A Surc",60]
[8,"RAMADA Joana","Ambérieu",39,2,null,null,null,null,null,null,null,null,"F Top B",15,null,null,"1/2 Top A",24]
[9,"CLAUDET Romane","Saint Genis",26,2,null,null,"P Top A",2,"3ème Top A",24]
[10,"CLAUDET Clara","Saint Genis",26,2,null,null,"P Top A",2,"3ème Top A",24]
[11,"DEVILLARD Pauline","Bourg Ceyzériat",24,1,"1/2 Top A",24]
[12,"ROUSSET Manon","Oyonnax",22,3,"P Top A",2,"1/4 Top A",18,"4ème Top A",2]
[13,"PIERRE Eva","Belley",22,2,null,null,"P Top A",2,null,null,null,null,"V Top B",20]
[14,"DE AMEIDA Melina","Montmerle",18,4,"P Top A",2,"P Top A",2,"5ème Top A",2,null,null,"1/2 Top B",12]
[15,"GIL Adèle","Belley",14,2,null,null,null,null,null,null,null,null,"1/2 Top B",12,null,null,"P Top A",2]
[16,"DI MARIO Maelle","Montmerle",4,2,null,null,null,null,"5ème Top A",2,null,null,null,null,null,null,"P Top A",2]
[17,"GALLARD Jennifer","Oyonnax",3,2,null,null,null,null,"4ème Top A",2,null,null,"P Top B",1]
[18,"BRUNE Gaëlle","Oyonnax",2,1,"P Top A",2]
[19,"PEY Jane","Trévoux",2,1,null,null,"P Top A",2]
[20,null,null,null,0]
[21,null,null,null,0]
[22,"HECKEL Julie","Montmerle",{"$f":"G43+I43+K43+M43+O43+Q43+S43+U43+W43+Y43+AA43+AC43","v":2},{"$f":"COUNTA(G43,I43,K43,O43,S43,U43,W43,Y43)","v":1},null,null,null,null,null,null,null,null,null,null,null,null,"P Top A",2]
[]
["BENJAMINES",null,null,null,null,"X",null,"X",null,"X",null,"X",null,"X",null,"X",null,"X",null,"X"]
[1,"CORDIER Louise","Trévoux",{"$f":"G46+I46+K46+M46+O46+Q46+S46+U46+W46+Y46+AA46+AC46","v":164},{"$f":"COUNTA(G46,I46,K46,O46,S46,U46,W46,Y46)","v":4},null,null,"V Top A",40,"F Top A Surc",60,null,null,"P Top A Surc",4,null,null,"F Top A Surc",60]
[2,"LEBEAULT Sasha","Montmerle",160,2,null,null,null,null,"V Top A Surc",80,null,null,"V Top A Surc",80]
[3,"TATOT Tatiana","Ambérieu",140,4,"F Top A",30,"F Top A",30,"V Top A",40,null,null,"1ère Top A",40]
[4,"LEUK Julie","Montmerle",134,4,"V Top A",40,"1/2 Top A",24,"F Top A",30,null,null,null,null,null,null,"V Top A",40]
[5,"MARRON Gabrielle","Saint Genis",112,4,"1/2 Top A",24,null,null,"V Top A",40,null,null,"3ème Top A",24,null,null,"1/2 Top A",24]
[6,"VASTEL Marion","Trévoux",72,3,null,null,"1/4 Top A",18,"1/2 Top A",24,null,null,null,null,null,null,"F Top A",30]
[7,"TRAVET Romane","Montmerle",50,3,"P Top A",2,"1/4 Top A",18,"F Top A",30]
[8,"NGUYEN Tiffany","Trévoux",48,2,null,null,null,null,"1/2 Top A",24,null,null,null,null,null,null,"1/2 Top A",24]
[9,"BARLET Léa","Belley",30,1,null,null,null,null,null,null,null,null,"2ème Top A",30]
[10,"BELLEC Ambre","Belley",26,2,null,null,"1/2 Top A",24,null,null,null,null,"4ème Top A",2]
[11,"PLANTIER Elsa","Beynost",26,2,"1/2 Top A",24,null,null,null,null,null,null,null,null,null,null,"P Top A",2]
[12,"SLIMANI Daria","Trévoux",24,1,null,null,null,null,"1/2 Top A",24]
[13,"BULAND Lise","Trévoux",24,1,null,null,null,null,"1/2 Top A",24]
[14,"BERUTTO Léa","Ambérieu",4,2,null,null,"P Top A",2,null,null,null,null,null,null,null,null,"P Top A",2]
[15,"BOUTE Maïwen","Ambérieu",4,2,null,null,"P Top A",2,null,null,null,null,null,null,null,null,"P Top A",2]
[16,"BOURGARD Mathilde","Gex",2,1,"P Top A",2]
[17,"JOUAN Léa","Gex",2,1,"P Top A",2]
[18,"MAITRE Anaê","Châtillon",2,1,null,null,null,null,"P Top A",2]
[19,"CHERUBINI Tessa","Châtillon",2,1,null,null,null,null,"P Top A",2]
[20,"MORIN Gaiane","Châtillon",2,1,null,null,null,null,"P Top A",2]
[21,"MALLET Rosie","Trévoux",2,1,null,null,null,null,"P Top A",2]
[22,"BROCHARD Anissa","Châtillon",2,1,null,null,null,null,"P Top A",2]
[23,"PARUTA DELHAYE DE MAULDE Tiffanie","Châtillon",2,1,null,null,null,null,"P Top A",2]
[null,null,null,0,0]
[]
["POUSSINES",null,null,null,null,"X",null,"X",null,"X",null,"X",null,"X",null,"X",null,"X",null,"X"]
[1,"LEGOUGE Flora","Trévoux",{"$f":"G72+I72+K72+M72+O72+Q72+S72+U72+W72+Y72+AA72+AC72","v":40},{"$f":"COUNTA(G72,I72,K72,O72,S72,U72,W72,Y72)","v":1},null,null,null,null,"V Top A",40]
[2,"MOLIMARD Clémence","Trévoux",30,1,null,null,null,null,"F Top A",30]
[3,"FERRY Violette","Bourg Ceyzériat",24,1,null,null,null,null,"1/2 Top A",24]
[4,"RICHER Morgane","Bourg Ceyzériat",24,1,null,null,null,null,"1/2 Top A",24]
[5,"ESTVES Maeva","Trévoux",2,1,null,null,null,null,"P Top A",2]
[6,"BRULAY Océane","Châtillon",2,1,null,null,null,null,"P Top A",2]
[7,"SLIMANI Mia","Trévoux",2,{"$f":"COUNTA(G78,I78,K78,O78,S78,U78,W78,Y78)","v":1},null,null,null,null,"P Top A",2]
[8,null,null,0]
[9,null,null,0]
[10,null,null,0]
[]
["CADETS",null,null,null,null,"X",null,"X",null,"X",null,"X",null,"X",null,"X",null,"X",null,"X"]
[1,"HECKENDORN Mathys","Saint Genis",{"$f":"G84+I84+K84+M84+O84+Q84+S84+U84+W84+Y84+AA84+AC84","v":146},{"$f":"COUNTA(G84,I84,K84,O84,S84,U84,W84,Y84)","v":5},"1/4 Top A",18,"1/2 Top A",24,"V Top A",40,null,null,"1/2 Top A",24,null,null,"V Top A",40]
[2,"MARRON Clément","Saint Genis",106,4,"1/4 Top A",18,null,null,"V Top A",40,null,null,"1/2 Top A",24,null,null,"1/2 Top A",24]
[3,"JULIEN Elie","Châtillon",62,3,"1/4 Top A",18,null,null,"V Top B",20,null,null,null,null,null,null,"1/2 Top A",24]
[4,"BESSET Florent","Beynost",62,4,"F Top B",15,"P Top A",2,"F Top B",15,null,null,null,null,null,null,"F Top A",30]
[5,"FONTAINE Jonathan","Châtillon",58,5,"1/4 Top B",9,"F Top B",15,"V Top B",20,null,null,"1/2 Top B",12,null,null,"P Top A",2]
[6,"BOEHLER Julien","Belley",54,4,"1/2 Top B",12,"V Top B",20,"P Top A",2,null,null,"V Top B",20]
[7,"RUER Léo","Ambérieu",50,5,"1/2 Top B",12,"1/2 Top B",12,"1/2 Top B",12,null,null,"1/2 Top B",12,null,null,"P Top A",2]
[8,"PROST Justin","Saint Genis",48,2,"1/4 Top A",18,"F Top A",30]
[9,"GERBIER Loan","Trévoux",40,1,"V Top A",40]
[10,"PLANTIER Yann","Beynost",37,4,"P Top A",2,"P Top A",2,"F Top B",15,null,null,null,null,null,null,"1/4 Top A",18]
[11,"PARMENTIER Guillaume","Bourg Ceyzériat",35,4,"1/4 Top B",9,null,null,"1/4 Top B",9,null,null,"F Top B",15,null,null,"P Top A",2]
[12,"CHARREYRON Bruno","Trévoux",34,4,"P Top A",2,"1/2 Top B",12,"P Top A",2,null,null,null,null,null,null,"1/4 Top A",18]
[13,"LEGARDEUR Matteo","Saint Genis",30,1,"F Top A",30]
[14,"ACOSTA Cyril","Ambérieu",30,1,null,null,null,null,"F Top A",30]
[15,"WANTZ Leo","Montmerle",30,4,"P Top A",2,"P Top A",2,"1/2 Top A",24,null,null,"P Top A",2]
[16,"VINCENT Gaël","Belley",30,4,"1/4 Top B",9,null,null,"P Top A",2,null,null,"P Top B",1,null,null,"1/4 Top A",18]
[17,"BURLEY Jeremy","Ambérieu",29,4,null,null,"P Top B",1,"1/2 Top B",12,null,null,"P Top B",1,null,null,"F Top B",15]
[18,"PASCAL Simon","Ambérieu",26,4,"1/8 Top B",7,"1/4 Top B",9,"1/4 Top B",9,null,null,null,null,null,null,"P Top B",1]
[19,"PERRIN Joris","Bourg Ceyzériat",24,1,"1/2 Top A",24]
[20,"ORIAL Alexandre","Saint Genis",24,3,"V Top B",20,null,null,null,null,null,null,"P Top A",2,null,null,"P Top A",2]
[21,"SEMIZ Alexi","Bourg Ceyzériat",22,3,"P Top B",1,"1/4 Top B",9,null,null,null,null,null,null,null,null,"1/2 Top B",12]
[22,"BRONNEC Clément","Beynost",21,2,null,null,null,null,"1/2 Top B",12,null,null,null,null,null,null,"1/4 Top B",9]
[23,"LOMBARD ROUSSET Matéo","Beynost",21,2,null,null,null,null,"1/2 Top B",12,null,null,null,null,null,null,"1/4 Top B",9]
[24,"MARTINEZ Sébastien","Ambérieu",21,2,null,null,null,null,null,null,null,null,"P Top B",1,null,null,"V Top B",20]
[25,"BACHAUD Léo","Trévoux",19,3,"1/4 Top B",9,"1/4 Top B",9,null,null,null,null,null,null,null,null,"P Top B",1]
[26,"PANEK Maxim","Bourg Ceyzériat",19,3,null,null,"1/4 Top B",9,"1/4 Top B",9,null,null,"P Top B",1]
[27,"ROUX Léopold","Beynost",19,2,null,null,"1/8 Top B",7,null,null,null,null,null,null,null,null,"1/2 Top B",12]
[28,"MONNE Etienne","Ambérieu",16,2,"1/8 Top B",7,null,null,"1/4 Top B",9]
[29,"LAMOURET Alexandre","Oyonnax",11,3,"P Top B",1,null,null,"P Top B",1,null,null,null,null,null,null,"1/4 Top B",9]
[30,"BERTHET Nathan","Bourg Ceyzériat",9,1,"1/4 Top B",9]
[31,"LAFAYE Dorian","Beynost",9,1,null,null,null,null,null,null,null,null,null,null,null,null,"1/4 Top B",9]
[32,"BURLET Jérémy","Ambérieu",7,1,"1/8 Top B",7]
[33,"PENNACINO Victor","Prévessin",7,1,null,null,"1/8 Top B",7]
[34,"ROUGEMONT Elie","Oyonnax",4,2,"P Top A",2,"P Top A",2]
[35,"GARRIDO Colas","Oyonnax",3,3,"P Top B",1,"P Top B",1,"P Top B",1]
[36,"POUGET Quentin","Trévoux",2,2,null,null,null,null,"P Top B",1,null,null,null,null,null,null,"P Top B",1]
[37,"DURO Esteban","Bourg Ceyzériat",1,1,"P Top B",1]
[38,"VINIERE Quenntin","Bourg ASPTT",1,1,"P Top B",1]
[39,"LUZIEUX Jérémie","Gex",1,1,"P Top B",1]
[40,"PICCOLI Antoine","Oyonnax",1,1,null,null,"P Top B",1]
[41,"GUYOT Kévin","Ambérieu",1,1,null,null,"P Top B",1]
[42,"LENGAGNE Rémi","Beynost",1,1,null,null,null,null,"P Top B",1]
[43,"MONNOT Alexis","Beynost",1,1,null,null,null,null,"P Top B",1]
[44,"ARBONNIER Lionel","Oyonnax",1,1,null,null,null,null,"P Top B",1]
[45,"LATRASSE Florian","Oyonnax",1,1,null,null,null,null,"P Top B",1]
[46,"NGUYEN Tony","Trévoux",1,1,null,null,null,null,"P Top B",1]
[47,"POMPET Ianis","Beynost",1,1,null,null,null,null,null,null,null,null,null,null,null,null,"P Top B",1]
[]
["MINIMES GARCONS",null,null,null,null,"X",null,"X",null,"X",null,"X",null,"X","X","X",null,null,null,"X"]
[1,"CHABANNE Léo","Ambérieu",{"$f":"G133+I133+K133+M133+O133+Q133+S133+U133+W133+Y133+AA133+AC133","v":200},{"$f":"COUNTA(G133,I133,K133,O133,S133,U133,W133,Y133)","v":3},null,null,"V Top A surc",80,"F Top A Surc",60,null,null,"F Top A Surc",60]
[2,"GIORDANO Martin","Bourg Ceyzériat",176,3,"1/2 Top A Surcl",48,null,null,"1/2 Top A Surc",48,null,null,"V Top A surc",80]
[3,"BOULITEAU Matteo","Montmerle",172,5,"1/2 Top A",24,"F Top A",30,"1/2 Top A Surc",48,null,null,"F Top A",30,null,null,"V Top A",40]
[4,"GALIGNE Robin","Trévoux",100,3,null,null,"1/2 Top A surc",48,"P Top A Surc",4,null,null,null,null,null,null,"1/2 Top A Surc",48]
[5,"PAYAN Igor","Châtillon",98,5,"P Top A",2,"1/2 Top A",24,"1/2 Top A",24,null,null,"1/2 Top A",24,null,null,"1/2 Top A",24]
[6,"LAGER Ewen","Bourg Ceyzériat",88,2,"V Top A",40,null,null,"1/2 Top A Surc",48]
[7,"COTIER Vivien","Saint Genis",86,4,"1/2 Top A",24,"1/4 Top A",18,null,null,null,null,"V Top B",20,null,null,"1/2 Top A",24]
[8,"LOUIS GAVET Rémi","Châtillon",70,2,null,null,null,null,"F Top A",30,null,null,"V Top A",40]
[9,"SARTHOIS Cyprien","Beynost",70,4,"1/2 Top B",12,"V Top B",20,"V Top B",20,null,null,null,null,null,null,"1/4 Top A",18]
[10,"MONARD Mathis","Châtillon",68,4,null,null,"P Top A",2,"1/2 Top A",24,null,null,"1/2 Top B",12,null,null,"F Top A",30]
[11,"LUCIEN Killian","Châtillon",61,5,"P Top A",2,"P Top A",2,"1/2 Top A",24,null,null,"F Top B",15,null,null,"1/4 Top A",18]
[12,"DUPUPET Adrien","Châtillon",48,2,null,null,"1/4 Top A",18,"F Top A",30]
[13,"FICAGNA Nathan","Beynost",39,3,"1/4 Top B",9,null,null,"F Top B",15,null,null,null,null,null,null,"F Top B",15]
[14,"DUFOUR Lucien","Beynost",35,2,"F Top B",15,null,null,"V Top B",20]
[15,"CASSAGNE Alexandre","Trévoux",35,4,"1/2 Top B",12,"1/4 Top B",9,"1/2 Top B",12,null,null,null,null,null,null,"P Top A",2]
[16,"DUBREUIL Robinson","Bourg Ceyzériat",34,3,"V Top B",20,"P Top A",2,null,null,null,null,null,null,null,null,"1/2 Top B",12]
[17,"NOGUES Raphaël","Saint Genis",32,3,"P Top A",2,null,null,null,null,null,null,"1/2 Top B",12,null,null,"1/4 Top A",18]
[18,"CHAUNEY Axel","Bourg Ceyzériat",31,3,"1/8 Top B",7,"1/2 Top B",12,"1/2 Top B",12]
[19,"ACOSTA Cyril","Ambérieu",30,1,null,null,null,null,"F Top A",30]
[20,"MEGARD Eliott","Beynost",30,2,null,null,"F Top B",15,"F Top B",15]
[21,"CHANEL BURIGNAT Jordan","Bourg Ceyzériat",29,4,"1/8 Top B",7,"P Top B",1,"1/2 Top B",12,null,null,null,null,null,null,"1/4 Top B",9]
[22,"VINCENT Dorian","Belley",22,3,"P Top B",1,null,null,null,null,null,null,"1/4 Top B",9,null,null,"1/2 Top B",12]
[23,"CHAVANEL Dorian","Ambérieu",21,5,"P Top B",1,"1/4 Top B",9,"P Top B",1,null,null,"1/4 Top B",9,null,null,"P Top B",1]
[24,"BOUYSSOU Maxence","Trévoux",20,2,null,null,"1/4 Top A",18,null,null,null,null,null,null,null,null,"P Top A",2]
[25,"THIROUARD Thomas","Ambérieu",20,3,null,null,"1/4 Top B",9,null,null,null,null,"1/4 Top B",9,null,null,"P Top A",2]
[26,"BATAILLE Ulysse","Trévoux",20,1,null,null,null,null,null,null,null,null,null,null,null,null,"V Top B",20]
[27,"BALME Raphaël","Ambérieu",19,3,null,null,null,null,"P Top B",1,null,null,"1/4 Top B",9,null,null,"1/4 Top B",9]
[28,"BERTHILLIER Kostia","Bourg Ceyzériat",13,2,"P Top B",1,"1/2 Top B",12]
[29,"CHIROL Maxence","Montmerle",13,4,"P Top A",2,null,null,"P Top B",1,null,null,"P Top B",1,null,null,"1/4 Top B",9]
[30,"BOURCET Thomas","Trévoux",12,1,null,null,null,null,"1/2 Top B",12]
[31,"BORDET Vivien","Oyonnax",12,3,"P Top B",1,"1/4 Top B",9,null,null,null,null,null,null,null,null,"P Top A",2]
[32,"DEBARRE Hugo","Beynost",10,2,null,null,"P Top B",1,null,null,null,null,null,null,null,null,"1/4 Top B",9]
[33,"TOURAIS Vincent","Bourg Ceyzériat",9,1,"1/4 Top B",9]
[34,"BOIZET Clément","Bourg Ceyzériat",9,1,"1/4 Top B",9]
[35,"BESOMBES Maxence","Gex",9,1,"1/4 Top B",9]
[36,"GUIGNABAUDET Eliot","Ambérieu",3,3,null,null,"P Top B",1,null,null,null,null,"P Top B",1,null,null,"P Top B",1]
[37,"PASCAL Baptiste","Ambérieu",2,2,null,null,"P Top B",1,null,null,null,null,null,null,null,null,"P Top B",1]
[38,"MENTOR Mustafa","Belley",2,2,null,null,null,null,null,null,null,null,"P Top B",1,null,null,"P Top B",1]
[39,"GUERIN Nathan","Gex",1,1,"P Top B",1]
[40,"MARTINEZ-LEON Francisco","Saint Genis",1,1,null,null,"P Top B",1]
[41,"BOYER Thibault","Trévoux",1,1,null,null,null,null,"P Top B",1]
[42,"DOMAIN Noa","Belley",1,1,null,null,null,null,null,null,null,null,"P Top B",1]
[43,"FOUNERY Mathéis","Beynost",1,1,null,null,null,null,null,null,null,null,null,null,null,null,"P Top B",1]
[44,"MASCUNAN Léo","Beynost",1,1,null,null,null,null,null,null,null,null,null,null,null,null,"P Top B",1]
[]
["BENJAMINS",null,null,null,null,"X",null,"X",null,"X",null,"X",null,"X",null,"X",null,"X",null,"X"]
[1,"MOREY Nicolas","Bourg Ceyzériat",{"$f":"G179+I179+K179+M179+O179+Q179+S179+U179+W179+Y179+AA179+AC179","v":268},{"$f":"COUNTA(G179,I179,K179,O179,S179,U179,W179,Y179)","v":4},"F Top A Surc",60,"V Top A Surc",80,"V Top A Surc",80,null,null,"1/2 Top A Surc",48]
[2,"NALET Martin","Bourg Ceyzériat",172,4,"V Top A",40,"1/2 Top A Surc",48,"V Top A Surc",80,null,null,"P Top A Surc",4]
[3,"LUCIEN Lucas","Châtillon",154,5,"F Top A",30,"1/4 Top A Surc",36,"1/2 Top A Surc",48,null,null,"P Top A Surc",4,null,null,"1/4 Top A Surc",36]
[4,"SANLIARD Yoann","Oyonnax",140,4,null,null,"F Top A",30,"1er Top A",40,null,null,"V Top A",40,null,null,"F Top A",30]
[5,"ZARA-MARMETH Nathan","Oyonnax",114,5,"1/2 Top A",24,"1/2 Top A",24,"1er Top A",40,null,null,"P Top A",2,null,null,"1/2 Top A",24]
[6,"MARTINAND Cédric","Châtillon",110,3,null,null,"V Top A",40,null,null,null,null,"F Top A",30,null,null,"V Top A",40]
[7,"VIALLON Adrien","Châtillon",80,4,"1/2 Top A",24,"1/2 Top A",24,"2ème Top A",30,null,null,null,null,null,null,"P Top A",2]
[8,"TEMMERMAN Tom","Châtillon",69,4,"1/2 Top B",12,null,null,"2ème Top A",30,null,null,"1/2 Top B",12,null,null,"F Top B",15]
[9,"GENILLON Amir","Bourg Ceyzériat",68,5,"F Top B",15,"1/2 Top B",12,"4ème Top A",2,null,null,"F Top B",15,null,null,"1/2 Top A",24]
[10,"HAYETTE Anseis","Châtillon",60,3,null,null,"1/2 Top B",12,"3ème Top A",24,null,null,"1/2 Top A",24]
[11,"PRINCIC-GONZE Paco","Belley",60,3,null,null,"V Top B",20,null,null,null,null,"V Top B",20,null,null,"V Top B",20]
[12,"LECRIVAIN Raphaël","Châtillon",52,4,"P Top B",1,"F Top B",15,"3ème Top A",24,null,null,null,null,null,null,"1/2 Top B",12]
[13,"MASSE Titouan","Bourg Ceyzériat",30,4,null,null,"P Top A",2,"4ème Top A",2,null,null,"1/2 Top A",24,null,null,"P Top A",2]
[14,"CARPENTIER Erwan","Oyonnax",18,4,"P Top A",2,null,null,"5ème Top A",2,null,null,"P Top A",2,null,null,"1/2 Top B",12]
[15,"GOULET Adrien","Gex",12,1,"1/2 Top B",12]
[16,"SENELLART Octave","Ambérieu",12,1,null,null,null,null,null,null,null,null,"1/2 Top B",12]
[17,"BOURGEAY-SEGUIN William","Saint Genis",10,2,"P Top B",1,"1/4 Top B",9]
[18,"PATRY-KRANENBERG Antoine","Belley",10,2,null,null,"1/4 Top B",9,null,null,null,null,"P Top B",1]
[19,"DURAND Léo","Montmerle",7,4,"P Top A",2,"P Top A",2,"5ème Top A",2,null,null,null,null,null,null,"P Top B",1]
[20,"CAMILLE Thomas","Beynost",2,2,null,null,"P Top B",1,null,null,null,null,null,null,null,null,"P Top B",1]
[21,"PIERRE Enzo","Bourg Ceyzériat",1,1,"P Top B",1]
[22,"MARTINS DE AZEVEDO Evan","Saint Genis",1,1,"P Top B",1]
[23,"PERRET Arnaud","Ambérieu",1,1,null,null,"P Top B",1]
[24,"NOIZET Nathan","Ambérieu",1,1,null,null,"P Top B",1]
[25,"VIIDAL Mathieu","Ambérieu",1,1,null,null,null,null,null,null,null,null,"P Top B",1]
[26,"POTON Matthieu","Belley",1,1,null,null,null,null,null,null,null,null,"P Top B",1]
[27,"LAPOUGE Silas","Beynost",1,1,null,null,null,null,null,null,null,null,null,null,null,null,"P Top B",1]
[]
[]
[]
[]
[]
[28,null,null,{"$f":"G211+I211+K211+M211+O211+Q211+S211+U211+W211+Y211+AA211+AC211","v":0}]
[29,null,null,0]
[]
["POUSSINS",null,null,null,null,"X",null,"X",null,"X",null,"X",null,"X",null,"X",null,"X",null,"X"]
[1,"GRIMAUD Yann","Bourg Ceyzériat",{"$f":"G215+I215+K215+M215+O215+Q215+S215+U215+W215+Y215+AA215+AC215","v":160},{"$f":"COUNTA(G215,I215,K215,O215,S215,U215,W215,Y215)","v":4},"V Top A",40,"V Top A",40,"V Top A",40,null,null,null,null,null,null,"V Top A",40]
[2,"MONARD Timothy","Châtillon",120,4,"F Top A",30,"F Top A",30,"F Top A",30,null,null,null,null,null,null,"F Top A",30]
[3,"GENILLON Chedid","Bourg Ceyzériat",106,4,"P Top A",2,null,null,"V Top A",40,null,null,"V Top A",40,null,null,"1/2 Top A",24]
[4,"TISSERAND Luca","Ambérieu",80,4,"1/2 Top A",24,"P Top A",2,null,null,null,null,"F Top A",30,null,null,"1/2 Top A",24]
[5,"CAREME Axel","Montmerle",66,3,null,null,null,null,"1/2 Top A",24,null,null,"1/2 Top A",24,null,null,"1/4 Top A",18]
[6,"FAUGERE Maxence","Bourg Ceyzériat",48,2,"1/2 Top A",24,"1/2 Top A",24]
[7,"BORGE Joris","Châtillon",30,1,null,null,null,null,"F Top A",30]
[8,"BORGES LEVY Nathan","Ambérieu",26,2,"P Top A",2,"1/2 Top A",24]
[9,"ORIAL Jérémie","Saint Genis",26,2,null,null,null,null,null,null,null,null,"1/2 Top A",24,null,null,"P Top A",2]
[10,"FLECHET Louis","Châtillon",24,1,null,null,null,null,"1/2 Top A",24]
[11,"YUNTA Raphaël","Châtillon",24,1,null,null,null,null,"1/2 Top A",24]
[12,"PITON Corentin","Trévoux",24,1,null,null,null,null,"1/2 Top A",24]
[13,"BROYER Louis","Châtillon",18,1,null,null,null,null,null,null,null,null,null,null,null,null,"1/4 Top A",18]
[14,"KHAMLA Ethan","Villars",4,2,null,null,null,null,null,null,null,null,"P Top A",2,null,null,"P Top A",2]
[15,"TEMMERMANN Maxence","Châtillon",4,2,null,null,null,null,null,null,null,null,"P Top A",2,null,null,"P Top A",2]
[16,"BOBAN Paul","Oyonnax",2,1,"P Top A",2]
[17,"BARRELON Enzo","Trévoux",2,1,null,null,null,null,"P Top A",2]
[18,"ARDUIN Théotime","Belley",2,1,null,null,null,null,null,null,null,null,"P Top A",2]
[19,"BAUD Tom","Trévoux",2,1,null,null,null,null,"P Top A",2]
[20,"MONTCHAL Ruben","Beynost",2,1,null,null,null,null,null,null,null,null,null,null,null,null,"P Top A",2]
[12,null,null,{"$f":"G235+I235+K235+M235+O235+Q235+S235+U235+W235+Y235+AA235+AC235","v":0}]
[13,null,null,0]
[14,null,null,0]
[15,null,null,0]
[16,null,null,0]
[17,null,null,0]
[18,null,null,0]
[19,null,null,0]
[20,null,null,0]
[21,null,null,0]

{"sheet":"Feuil1","index":2,"n_rows":17,"n_cols":15,"rows_kept":17,"cut":false,"hidden":false,"merged":[]}
[null,null,"V Top A Surc",80,"V Top A Surc",80,null,null,null,null,null,null,null,null,"F Top A Surc"]
["1ère TopA",40,"V Top A",40,"1/2 TopA Surc",24,null,null,null,null,"V Top A",40]
["3ème TopA",24,"1/2 Top A",24,"1ere TopA",40,null,null,null,null,"F Top A",30,null,null,"1/2 Top A Surc"]
["2ème TopA",30,"F Top A",30,"1ere TopA",40,null,null,null,null,"1/2 Top A",24,"1ère Top A",40,"P Top A Surc"]
["4ème TopA",2,null,null,null,null,null,null,"V Top A",40,"1/2 Top A ",24,"2ème Top A",30,"1ère Top A"]
[null,null,null,null,"F Top A Surc",60]
[null,null,"1/2 Top A",24,"2ème Top A",30]
[null,null,null,null,"2ème Top A",30]
[]
[null,null,"P Top A",2,null,null,null,null,null,null,"P Top A",2,null,null,"3ème Top A"]
[null,null,null,null,null,null,null,null,"F Top A",30]
[null,null,null,null,null,null,null,null,null,null,null,null,"3ème Top A",24,"5ème Top A"]
[null,null,null,null,null,null,null,null,"1/2 Top A",24,"P Top A",2]
[null,null,null,null,null,null,null,null,"1/2 Top A",24]
[null,null,null,null,"3ème Top A",24]
[null,null,null,null,"3ème Top A",24]
["5ème TopA",2,"P Top A",2]